Cogmind - Beta 15 @@@ ROGUE MODE // 2025.07.17 @ 08:05:08 Player: Vaya Result: Destroyed by O5-QIX(j) with Overtuned Pulse Rifle Performance ------------- Evolutions (0) 0 Regions Visited (3) 600 Robots Destroyed (5) 25 Value Destroyed (67) 67 Prototype IDs (6) 120 Alien Tech Used (0) 0 Bonus (800) 800 TOTAL SCORE: 1612 Bonus ------- Registered with UFD 300 Met Optimus in HQ 500 Cogmind --------- Core Integrity 0/250 Matter 300/300 Energy 290/290 System Corruption 0% Temperature Cool (69) Movement Walking (100) Location -8/Scraptown Parts ------- > --- POWER (1) -------- Improved Deuterium Engine > --- PROPULSION (2) --- Overtuned Titanium Leg Overtuned Titanium Leg > --- UTILITY (2) ------ Small Storage Unit > --- WEAPON (2) ------- Overtuned Pulse Rifle Makeshift Axe > --- INVENTORY (8) ---- Ion Engine Improved Heat Sink Makeshift Microdissipator Network Improved Terrain Scanner Experimental Terrain Scan Processor Makeshift Salvage Targeting Computer Mining Laser Peak State ------------ > --- POWER ------------ Improved Deuterium Engine > --- PROPULSION ------- Overtuned Titanium Leg Overtuned Titanium Leg > --- UTILITY ---------- Small Storage Unit Seismic Detector > --- WEAPON ----------- Overtuned Pulse Rifle Makeshift Axe > --- INVENTORY -------- Ion Engine Improved Heat Sink Makeshift Microdissipator Network Improved Terrain Scanner Experimental Terrain Scan Processor Makeshift Salvage Targeting Computer Mining Laser [Rating: 21] Favorites ----------- Power Ion Engine Engine Ion Engine Propulsion Aluminum Leg Leg Aluminum Leg Utility Small Storage Unit Device Seismic Detector Storage Small Storage Unit Weapon Assault Rifle Energy Gun EM Pulse Gun Ballistic Gun Assault Rifle Slashing Weapon Makeshift Axe Build | -11 -10 -10 -8 ------- Run | Yrd Mat Sub Scr Slots Evolved . | . . . . Power . | . . . . Propulsion . | . . . . Utility . | . . . . Weapon . | . . . . Parts Attached 12 | 7 . . 5 Power 2 | 1 . . 1 Engine 2 | 1 . . 1 Core . | . . . . Reactor . | . . . . Propulsion 4 | 2 . . 2 Treads . | . . . . Leg 4 | 2 . . 2 Wheel . | . . . . Hover . | . . . . Flight . | . . . . Utility 2 | 2 . . . Device 1 | 1 . . . Storage 1 | 1 . . . Processor . | . . . . Hackware . | . . . . Protection . | . . . . Artifact . | . . . . Weapon 4 | 2 . . 2 Energy Gun 2 | 1 . . 1 Energy Cannon . | . . . . Ballistic Gun 1 | 1 . . . Ballistic Cannon . | . . . . Launcher . | . . . . Special Weapon . | . . . . Impact Weapon . | . . . . Slashing Weapon 1 | . . . 1 Piercing Weapon . | . . . . Special Melee Weapon . | . . . . Unidentified Prototypes . | . . . . Parts Lost 5 | . . . 5 Power . | . . . . Propulsion 2 | . . . 2 Utility 1 | . . . 1 Weapon 2 | . . . 2 Highest Loss Streak 4 | . . . 4 To Critical Strikes . | . . . . Average Backups 4 | 1 2 2 5 Power . | . . . . Propulsion . | . . . . Utility 2 | . 1 1 2 Weapon 2 | . 1 1 2 Tool/Special . | . . . . Unused Backups 8 | . . . 8 Power . | . . . . Propulsion . | . . . . Utility 6 | . . . 6 Weapon 2 | . . . 2 Tool/Special . | . . . . Average Slot Usage (%) 99 | . 100 100 99 Engine 14 | . 14 14 14 Leg 27 | . 28 28 27 Device 14 | . 14 14 14 Storage 14 | . 14 14 14 Energy Gun 14 | . 14 14 14 Ballistic Gun 13 | . 14 14 13 Peak Build Rating 21 | 7 7 8 21 Average Rating 8 | 5 7 7 8 On Entrance 5 | . 7 7 8 Naked Turns . | . . . . Heaviest Build 22 | 15 15 15 22 Greatest Support 38 | 20 20 20 38 Greatest Overweight (x) 7 | 1 . . 7 Average Overweight (x) . | . . . . Largest Inventory Capacity 8 | 8 8 8 8 Average Capacity 7 | 7 8 8 8 Most Carried 8 | 3 2 5 8 Average Carried 5 | . 2 2 5 Final Capacity 8 | 8 8 8 8 Final Carried 7 | 2 2 5 7 Class Distribution -------------------- 100% | Mutant Dominant Class ---------------- Mutant | -10/Materials Mutant | -10/Subcaves Mutant | -8/Scraptown Resources | -11 -10 -10 -8 ----------- Run | Yrd Mat Sub Scr Matter Collected 360 | 177 . 96 87 Remotely . | . . . . Salvage Created 155 | 111 . 44 . Parts 11 | 10 . 1 . Haulers Intercepted . | . . . . Recyclers Shooed 1 | 1 . . . Parts Field Recycled . | . . . . Retrieved Matter . | . . . . Parts Self-Destructed . | . . . . Prevented . | . . . . Kills | -11 -10 -10 -8 ------- Run | Yrd Mat Sub Scr Combat Hostiles Destroyed 1 | . . 1 . Guns 1 | . . 1 . Classes Destroyed 3 | 2 . 1 . Tunneler 3 | 3 . . . Recycler 1 | 1 . . . Subdweller 1 | . . 1 . Best Kill Streak 3 | 3 . 1 . Combat Bots Only 1 | . . 1 . Max Kills in Single Turn 1 | 1 . 1 . Gunslinging . | . . . . Exploded . | . . . . Melee . | . . . . Uniques/NPCs Destroyed . | . . . . Combat | -11 -10 -10 -8 -------- Run | Yrd Mat Sub Scr Hostile Shots Fired 52 | . . 3 49 Missed 14 | . . . 14 Hits 38 | . . 3 35 Projectile 38 | . . 3 35 Critical Strikes 5 | . . . 5 Damage Taken 741 | 6 . 75 660 Core 252 | . . 25 227 Absorbed by Shields . | . . . . Core Remaining (%) 100 | 100 . . . Volleys Fired 21 | 8 . 3 10 Largest 2 | 2 . 2 2 Hottest 100 | 60 . 60 100 Shots Fired 39 | 16 . 6 17 Gun 39 | 16 . 6 17 Cannon . | . . . . Launcher . | . . . . Special . | . . . . Kinetic 20 | 8 . 3 9 Thermal 5 | . . . 5 Explosive . | . . . . Electromagnetic 14 | 8 . 3 3 Robot Hit Streak 4 | 4 . 3 4 Robot Miss Streak 2 | 2 . 1 2 Penetration Max . | . . . . Secondary Targets . | . . . . Shots Hit Robots 27 | 10 . 4 13 Core Hits 10 | 5 . 1 4 Critical Kills . | . . . . Critical Parts Destroyed . | . . . . Critical Strikes . | . . . . Melee Attacks 1 | . . . 1 Impact . | . . . . Slashing 1 | . . . 1 Piercing . | . . . . Sneak Attacks . | . . . . Combat Hostiles . | . . . . Follow-up Attacks . | . . . . Damage Inflicted 421 | 150 . 52 219 Guns 364 | 125 . 52 187 Cannons . | . . . . Explosions 25 | 25 . . . Melee 32 | . . . 32 Ramming . | . . . . Kinetic 165 | 48 . 40 77 Thermal 113 | 25 . . 88 Explosive . | . . . . Electromagnetic 111 | 77 . 12 22 Impact . | . . . . Slashing 32 | . . . 32 Piercing . | . . . . Highest Corruption . | . . . . Average Corruption . | . . . . Corruption Purged . | . . . . Corruption Blocked . | . . . . Overload Shots . | . . . . Overflow Damage . | . . . . Projectiles . | . . . . Explosions . | . . . . Melee . | . . . . Knockbacks . | . . . . Impact . | . . . . Kinetic . | . . . . Secondary . | . . . . Self-Inflicted Damage 7 | 7 . . . Shots 1 | 1 . . . Rammed . | . . . . Targets Rammed . | . . . . Kicked . | . . . . Crushed . | . . . . Highest Temperature 410 | 12 . . 410 Average Temperature 140 | 12 . . 153 Received Heat Transfer 476 | . . 27 449 Effects 2 | . . . 2 Interference 2 | . . . 2 Siege Activations . | . . . . Martial Activations . | . . . . Shielding Activations . | . . . . Robots Disrupted . | . . . . Combat Hostiles . | . . . . Robots Corrupted . | . . . . Combat Hostiles . | . . . . Parts Fried . | . . . . Impact Corruptions . | . . . . Robots Melted . | . . . . Combat Hostiles . | . . . . Parts Melted . | . . . . Heat Transferred 198 | 50 . . 148 Parts Sabotaged . | . . . . Parts Stolen . | . . . . Parts Stripped . | . . . . Power Chain Reactions 1 | 1 . . . Alert | -11 -10 -10 -8 ------- Run | Yrd Mat Sub Scr Maximum Alert Level . | . . . . Low Security (%) 100 | 100 100 . . Level 1 . | . . . . Level 2 . | . . . . Level 3 . | . . . . Level 4 . | . . . . Level 5 . | . . . . High Security . | . . . . Max Security . | . . . . Peak Influence 10 | 10 . . . Initial . | . . . . Average 1 | 1 . . . Influence Increases 20 | 20 . . . Destroy 0b10 Robot/NC 20 | 20 . . . Influence Decreases 20 | 20 . . . Time Decay 20 | 20 . . . Squads Dispatched . | . . . . Investigation . | . . . . Extermination . | . . . . Reinforcement . | . . . . Assault . | . . . . Garrison . | . . . . Intercept . | . . . . Searches Triggered . | . . . . Construction Impeded . | . . . . Haulers Reinforced . | . . . . Active Scanning Responses . | . . . . Cargo Convoy Interrupts . | . . . . Stealth | -11 -10 -10 -8 --------- Run | Yrd Mat Sub Scr Distress Signals . | . . . . Communications Jammed . | . . . . Distress Signals . | . . . . Times Spotted 19 | . . 1 18 Peak Tracking Total 5 | . . 1 5 Tactical Retreats . | . . . . Traps | -11 -10 -10 -8 ------- Run | Yrd Mat Sub Scr Traps Triggered . | . . . . Indirectly . | . . . . Trap Hack Attempts . | . . . . Triggered . | . . . . Disarmed . | . . . . Reprogrammed . | . . . . Reused . | . . . . Traps Extracted . | . . . . Installed . | . . . . Triggered . | . . . . Machines | -11 -10 -10 -8 ---------- Run | Yrd Mat Sub Scr Machines Disabled . | . . . . Max in Single Turn . | . . . . Machines Repaired . | . . . . Machines Dismantled . | . . . . Machines Sabotaged . | . . . . Overloaded Fab Kills . | . . . . Hacking | -11 -10 -10 -8 --------- Run | Yrd Mat Sub Scr Machines Accessed 7 | . . . 7 Terminals . | . . . . Fabricators . | . . . . Repair Stations . | . . . . Recycling Units . | . . . . Scanalyzers . | . . . . Garrison Access . | . . . . Total Hacks 44 | . . . 44 Successful 44 | . . . 44 Failed . | . . . . Catastrophic . | . . . . Database Lockouts . | . . . . Manual . | . . . . Terminals . | . . . . Fabricators . | . . . . Repair Stations . | . . . . Recycling Units . | . . . . Scanalyzers . | . . . . Garrison Access . | . . . . Terminal Hacks 44 | . . . 44 Record 44 | . . . 44 Fabricator Hacks . | . . . . Repair Station Hacks . | . . . . Recycling Unit Hacks . | . . . . Scanalyzer . | . . . . Garrison Access Hacks . | . . . . Unauthorized Hacks . | . . . . Terminals . | . . . . Fabricators . | . . . . Repair Stations . | . . . . Recycling Units . | . . . . Scanalyzers . | . . . . Garrison Access . | . . . . Data Cores Recovered . | . . . . Used . | . . . . Hacking Detections . | . . . . Full Trace Events . | . . . . Feedback Events . | . . . . Feedback Blocked . | . . . . Robot Schematics Acquired . | . . . . Robots Built . | . . . . Authchips . | . . . . Time . | . . . . Total Robot Build Rating . | . . . . Part Schematics Acquired . | . . . . Parts Built . | . . . . Authchips . | . . . . Time . | . . . . Total Part Build Rating . | . . . . Parts Repaired . | . . . . Time . | . . . . Parts Recycled . | . . . . Recycled Matter . | . . . . Retrieved Matter . | . . . . Retrieved Components . | . . . . Parts Scanalyzed . | . . . . Part Schematics Acquired . | . . . . Parts Damaged . | . . . . Bothacking | -11 -10 -10 -8 ------------ Run | Yrd Mat Sub Scr Used RIF Installer . | . . . . Robots Hacked . | . . . . Non-combat . | . . . . Combat . | . . . . Robot Hacks Applied . | . . . . Relay Couplers Released . | . . . . Fabnet Peak Effective % . | . . . . Robots Rewired . | . . . . Allies Hacked . | . . . . Hacks Repelled . | . . . . Allies | -11 -10 -10 -8 -------- Run | Yrd Mat Sub Scr Total Allies . | . . . . Largest Group . | . . . . Highest-Rated Group . | . . . . Highest-Rated Ally . | . . . . Total Orders . | . . . . Ally Attacks . | . . . . Total Damage . | . . . . Kills . | . . . . Allies Corrupted . | . . . . Allies Melted 5 | . . . 5 Intel | -11 -10 -10 -8 ------- Run | Yrd Mat Sub Scr Active Infowar (turns) 1741 | 54 19 275 1393 Seismic 1741 | 54 19 275 1393 Robot Analysis Total . | . . . . Derelict Logs Recovered . | . . . . Drone Launches . | . . . . Drone Recoveries . | . . . . Exploration | -11 -10 -10 -8 ------------- Run | Yrd Mat Sub Scr Turns Passed 1837 | 115 19 275 1428 Spaces Moved 1417 | 58 14 220 1125 Core 11 | 9 . . 2 Treads . | . . . . Legs 1406 | 49 14 220 1123 Wheels . | . . . . Hover . | . . . . Flight . | . . . . Fastest Speed 50 | 50 120 120 100 Average Speed 122 | 115 120 120 123 Slowest Speed 400 | 190 120 120 400 Overloaded Moves . | . . . . Propulsion Burnouts . | . . . . Robots Hopped . | . . . . Potential Cave-ins . | . . . . Cave-ins Triggered . | . . . . Exploration Rate (%) 20 | 3 3 10 66 Regions Visited 3 Branch Regions 2 Pre-discovered Areas . | . . . . Known Exits Taken . | . . . . Unknown Exits Taken 3 | 1 1 1 . Scrap Searched . | . . . . Spaces Dug . | . . . . Terrain Destroyed 6 | 5 . . 1 Melee . | . . . . Projectile 1 | . . . 1 AOE 5 | 5 . . . Terrain Rammed . | . . . . Walls Destroyed . | . . . . Machines Disabled . | . . . . Actions | -11 -10 -10 -8 --------- Run | Yrd Mat Sub Scr Total 1480 | 88 16 225 1151 Wait 14 | 10 3 . 1 Move 1414 | 57 13 219 1125 Hop . | . . . . Pick Up 16 | 6 . 3 7 Fast Attach 4 | 3 . . 1 Attach 7 | 4 . . 3 Detach . | . . . . Swap 1 | . . . 1 Drop 2 | . . . 2 Fire 21 | 8 . 3 10 Melee 1 | . . . 1 Ram . | . . . . Kick . | . . . . Crush . | . . . . Escape Stasis . | . . . . Rewire . | . . . . Trap . | . . . . Miscellaneous . | . . . . Route ------- -11/Scrapyard -10/Materials -10/Subcaves -8/Scraptown (discovered 2 exits: *Fac x2) History --------- Turn | Location | Event 6 | -11/Scrapyard | Discovered new exit (range 16) 116 | -11/Scrapyard | Entered Materials 117 | -10/Materials | Met a group of wandering Federalists 121 | -10/Materials | Discovered new exit (range 12) 135 | -10/Materials | Entered Subcaves 135 | -10/Subcaves | Accompanied by 2 allies 136 | -10/Subcaves | Continued accompanying wandering Federalists (2) 136 | -10/Subcaves | Approached by a straggling Scientist 307 | -10/Subcaves | Build established: Mutant 342 | -10/Subcaves | Lost 3 allies 397 | -10/Subcaves | Wandering Federalist uncovered a shortcut to Scraptown 410 | -10/Subcaves | Entered Scraptown 545 | -8/Scraptown | Visited UFD Registry 556 | -8/Scraptown | Heard Great Nut preacher, LISTEN AND RECITE! 564 | -8/Scraptown | Visited Cyclists 608 | -8/Scraptown | Visited Junk Repository 634 | -8/Scraptown | Visited Red Mages 682 | -8/Scraptown | Visited TADAMA 1015 | -8/Scraptown | Visited Assassins FH 1068 | -8/Scraptown | Registered with UFD as "Wrenchmod" 1131 | -8/Scraptown | Visited Cartography Club 1155 | -8/Scraptown | Visited Abandonware Association 1166 | -8/Scraptown | Learned abandonware demo "OVRCLOCK.EXE" 1187 | -8/Scraptown | Learned abandonware demo "ERRANTS.EXE" 1217 | -8/Scraptown | Visited Scrap Suit Storage 1245 | -8/Scraptown | Visited Infowarlord's Domain 1255 | -8/Scraptown | Found Exp. Terrain Scan Processor 1275 | -8/Scraptown | Visited Chapter 10 1360 | -8/Scraptown | Discovered new exit (range 5) 1473 | -8/Scraptown | Found Scrap Suit 1544 | -8/Scraptown | Met Optimus 1544 | -8/Scraptown | Accepted into 0bPrime 1611 | -8/Scraptown | Visited Research Penetration Think Tank 1644 | -8/Scraptown | Civil war broke out across Scraptown 1718 | -8/Scraptown | Identified exit to Factory 1722 | -8/Scraptown | Lost 6 allies 1800 | -8/Scraptown | Core integrity fell below 50% 1805 | -8/Scraptown | Core integrity fell below 20% 1811 | -8/Scraptown | Lost 3 allies 1838 | -8/Scraptown | Destroyed by O5-QIX(j) with Overtuned Pulse Rifle Last Messages --------------- Assault Rifle destroyed. Critical hit (Burn: +50). T7-RAK(j): "I'll admit this is sort of exciting." T7-RAK(j) destroyed. ZG-TGL(j) cannibalizes Ovr. Pulse Rifle to repair Ovr. Pulse Rifle. Overheating: System interference. Seismic Detector temporarily disabled. Ovr. Pulse Rifle temporarily disabled. TC-ELH(j) heat short circuits Ovr. Titanium Leg. ZG-TGL(j) destroyed. Aluminum Leg destroyed. 1D-A5Z(j) destroyed. TC-ELH(j) cannibalizes Imp. Deuterium Engine to repair Lgt. Deuterium Engine. Acquired Ovr. Titanium Leg. Acquired 27 matter. Seismic Detector destroyed. Critical hit (Burn: +50). Map ----- +----------------------------------------------------+ | | | | | | | | | | | | | | | | | | | | | ?????????????????????????????????????????????????? | | ?????????????????????????????????????????????????? | | ?????????????????????????????????????????????????? | | ?????????????????????????????????????????????????? | | ?????????????????????????????????????????????????? | | ?????????????????????????????????????????????????? | | ?????????????????????????????????????????????????? | | ?????????????????????????????????????????????????? | | ?????????????????????????????????????????????????? | | ?????????????????????????????????????????????????? | | ?????????????????????????????????????????????????? | | ????????????????????????#####????????????????????? | | ????????????????????????#"" #????????????????????? | | ############???####?????#"j"#????????????????????? | | "##""|##"""#??## ###?###gjj#????????????????????? | | ##""|##!!"#### =!!=###;[@!!##???????????????????? | | [%=[% =[=j!%%!=!=#???????????????????? | | %!%=j!=!%=!!*!#???????????????????? | | ###############!!%j###*#######???????????????????? | | ??????????????#![!##?###?????????????????????????? | | ??????????????##[=#??????????????????????????????? | | ?????????####### !############???????????????????? | | ###??????" !"# #""""""""""#???????????????????? | | ""#??????#" "# ### " #???????????????????? | | " #???####X ## ## ""#???????????????????? | | #???#" !"# ## ""#???????????????????? | | #???#"! "# ## """"#???????????????????? | | #???#" !"# ## " ""#???????????????????? | | #???#"! !"# ## = """"#???????????????????? | | #???#"! !"# ## %! ""#???????????????????? | | #???## ## ###[ "#???????????????????? | | #???# # # ! #???????????????????? | | ###???#### ##### ##%"########???????????????????? | | ########## ##### ##[##??????????????????????????? | | """""""""" """"" " "#??????????????????????????? | | = [[ "###########????????????????? | | !%! !%= "## #????????????????? | | =! =[*= "## #????????????????? | | [ %!"## #????????????????? | | [=* #????????????????? | +----------------------------------------------------+ Best States ------------- Heat Dissipation 25 Energy Generation 16 Energy Capacity 290 Matter Stores 300 Matter Capacity 300 Sight Range 16 Terrain Scan Density 10 Evasion (%) 55 Item Schematics ----------------- None Robot Schematics ------------------ None Fabricated ------------ Nothing Repaired ---------- Nothing Alien Tech Used ----------------- None Achievements -------------- None Challenges ------------ None Game ------ Seed NodeRagnarokShredder Manual? 0 Play Time 00:35:00 Cumulative 8.2 hours Start 2025.07.17 @ 07:27:31 End 2025.07.17 @ 08:05:08 Sessions 1 Manual Loads 0 Difficulty Rogue Special Mode None Game No. 11 Rogue 11 Adventurer 0 Explorer 0 Win Type - Total 0 Types 0/0/0/0/0/0/0/0/0/0 Lore% 14 Gallery% 13 Achievement% 13 Wizard Run 0 Options --------- Layout 1 ASCII 0 Keyboard 0 Movement Mouse Keybinds 0 Fullscreen 1 Font 24/Smallcaps Map View 50x35 Zoom Use 0% Tactical HUD 0 Map Filters NONE Filters NONE Steam 1 RUN: 5e6e43bf-c414-428d-ac1d-1c2ca948f465